[Event "Cracovia Festival-A 2023"]
[Site "Krakow"]
[Date "2023.12.31"]
[Round "5.16"]
[White "Klepek, Witold"]
[Black "Kulkarni Bhakti"]
[Result "0-1"]
[ECO "C07"]
[WhiteElo "2252"]
[BlackElo "2364"]
[Annotator "RC"]
[PlyCount "68"]
[EventDate "2023.12.24"]
[EventType "swiss"]
[EventCountry "POL"]
[SourceTitle "playchess.com"]
[Source "ChessBase"]
[SourceQuality "1"]
[TimeControl "40/5400+30:1800+30"]

1. e4 {[%emt 0:00:03]} e6 {[%emt 0:11:20]} 2. d4 {[%emt 0:00:25]} d5 {[%emt 0:00:12]} 3. Nd2 {[%emt 0:01:03]} c5 {[%emt 0:00:46]} 4. Ngf3 {[%emt 0:00:07]} cxd4 {[%emt 0:00:37]} 5. exd5 {[%emt 0:00:30]} Qxd5 {[%emt 0:00:11]} 6. Bc4 {[%emt 0:00:05]} Qd7 {[%emt 0:00:25]} 7. O-O {[%emt 0:01:49]} Nc6 {[%emt 0:00:33]} 8. Re1 {[%emt 0:08:09]} a6 {[%emt 0:00:49]} 9. Nb3 {[%emt 0:01:02]} Bb4 {[%emt 0:01:05]} 10. Bd2 {[%emt 0:04:04]} Be7 {[%emt 0:00:09]} 11. Bf4 {[%emt 0:01:33]} b5 {[%emt 0:08:02]} 12. Bf1 {[%emt 0:03:10]} Nf6 {[%emt 0:03:36]} 13. Nbxd4 {[%emt 0:05:46]} Nxd4 {[%emt 0:06:18]} 14. Nxd4 {[%emt 0:05:19]} Bb7 {[%emt 0:03:29]} 15. c3 {[%emt 0:05:39]} O-O {[%emt 0:04:03]} 16. Qd3 {[%emt 0:14:35]} Rad8 {[%emt 0:05:36]} 17. Rad1 {[%emt 0:02:47]} Nd5 {[%emt 0:01:47]} 18. Bc1 {[%emt 0:05:46]} Qc7 {[%emt 0:04:59]} 19. Qh3 {[%emt 0:07:52]} Nf4 {[%emt 0:14:14]} 20. Qg4 {[%emt 0:02:17]} Bd6 {[%emt 0:01:17]} 21. Nc2 {[%emt 0:14:43]} f5 {[%emt 0:05:29]} 22. Qh4 {[%emt 0:03:01]} Ng6 {[%emt 0:05:17]} 23. Qh3 {[%emt 0:02:13]} e5 {[%emt 0:01:10]} 24. Bg5 {[%emt 0:01:35]} Rd7 {[%emt 0:05:47]} 25. Ne3 {[%emt 0:01:41]} h6 {[%emt 0:04:47]} 26. Qh5 {[%emt 0:00:49]} Kh7 {[%emt 0:03:35]} 27. Bxh6 {[%emt 0:02:31]} gxh6 {[%emt 0:00:03]} 28. Nxf5 {[%emt 0:00:04]} Rxf5 {[%emt 0:00:23]} 29. Qxf5 {[%emt 0:00:03]} e4 {[%emt 0:01:46]} 30. g3 {[%emt 0:05:39]} Rf7 {[%emt 0:00:06]} 31. Qh5 {[%emt 0:00:25]} Bc5 {[%emt 0:01:44]} 32. Re2 {[%emt 0:00:14]} Qb6 {[%emt 0:01:16]} 33. Rdd2 {[%emt 0:01:19]} e3 {[%emt 0:00:24]} 34. b4 {[%emt 0:00:36]} exf2+ {[%emt 0:00:11]} 0-1

[Event "Cracovia Festival-A 2023"]
[Site "Krakow"]
[Date "2023.12.31"]
[Round "5.17"]
[White "Aakash Sharadchandra, Dalvi"]
[Black "Anwesh, Upadhyaya"]
[Result "1-0"]
[ECO "D43"]
[WhiteElo "2130"]
[BlackElo "2350"]
[Annotator "RC"]
[PlyCount "81"]
[EventDate "2023.12.24"]
[EventType "swiss"]
[EventCountry "POL"]
[SourceTitle "playchess.com"]
[Source "ChessBase"]
[SourceQuality "1"]
[TimeControl "40/5400+30:1800+30"]

1. d4 {[%emt 0:10:03]} d5 {[%emt 0:01:00]} 2. c4 {[%emt 0:00:10]} c6 {[%emt 0:00:04]} 3. Nf3 {[%emt 0:00:05]} Nf6 {[%emt 0:00:07]} 4. Nc3 {[%emt 0:00:04]} e6 {[%emt 0:00:12]} 5. Bg5 {[%emt 0:00:07]} h6 {[%emt 0:00:57]} 6. Bh4 {[%emt 0:00:07]} dxc4 {[%emt 0:00:18]} 7. e4 {[%emt 0:00:05]} g5 {[%emt 0:00:13]} 8. Bg3 {[%emt 0:00:05]} b5 {[%emt 0:00:11]} 9. Be2 {[%emt 0:00:06]} Bb7 {[%emt 0:00:21]} 10. h4 {[%emt 0:00:06]} g4 {[%emt 0:00:26]} 11. Ne5 {[%emt 0:00:05]} Nbd7 {[%emt 0:00:30]} 12. Nxd7 {[%emt 0:00:07]} Qxd7 {[%emt 0:00:07]} 13. Be5 {[%emt 0:00:26]} Qe7 {[%emt 0:00:12]} 14. Bxg4 {[%emt 0:08:16]} Rg8 {[%emt 0:00:12]} 15. Bf3 {[%emt 0:00:42]} O-O-O {[%emt 0:01:17]} 16. O-O {[%emt 0:02:48]} Nd7 {[%emt 0:01:02]} 17. Bg3 {[%emt 0:03:16]} Bg7 {[%emt 0:05:09]} 18. b3 {[%emt 0:19:46]} Ne5 {[%emt 0:10:18]} 19. d5 {[%emt 0:10:59]} b4 {[%emt 0:06:41]} 20. Na4 {[%emt 0:00:37]} cxd5 {[%emt 0:05:47]} 21. exd5 {[%emt 0:01:21]} Nxf3+ {[%emt 0:08:45]} 22. Qxf3 {[%emt 0:00:03]} Bxa1 {[%emt 0:01:55]} 23. Rxa1 {[%emt 0:03:32]} c3 {[%emt 0:07:09]} 24. Qe3 {[%emt 0:20:24]} Rxg3 {[%emt 0:05:21]} 25. fxg3 {[%emt 0:00:04]} Bxd5 {[%emt 0:06:32]} 26. a3 {[%emt 0:01:28]} a5 {[%emt 0:21:04]} 27. axb4 {[%emt 0:02:41]} axb4 {[%emt 0:01:03]} 28. Kh2 {[%emt 0:08:46]} Bc6 {[%emt 0:03:27]} 29. Qb6 {[%emt 0:04:51]} Qb7 {[%emt 0:02:01]} 30. Qc5 {[%emt 0:00:13]} Kb8 {[%emt 0:09:00]} 31. Nb6 {[%emt 0:00:49]} Qc7 {[%emt 0:00:43]} 32. Qxb4 {[%emt 0:00:57]} Bb7 {[%emt 0:00:32]} 33. Nc4 {[%emt 0:01:46]} c2 {[%emt 0:01:42]} 34. Rc1 {[%emt 0:01:16]} Rd3 {[%emt 0:01:41]} 35. Qf8+ {[%emt 0:00:02]} Bc8 {[%emt 0:00:55]} 36. Qb4+ {[%emt 0:00:19]} Bb7 {[%emt 0:00:34]} 37. Qf8+ {[%emt 0:00:32]} Bc8 {[%emt 0:00:05]} 38. Qg7 {[%emt 0:00:58]} Rxb3 {[%emt 0:01:16]} 39. Rxc2 {[%emt 0:00:08]} Rb4 {[%emt 0:00:37]} 40. Ne3 {[%emt 0:00:00]} Qa7 {[%emt 0:00:00]} 41. Rxc8+ {[%emt 0:04:28]} 1-0

[Event "Cracovia Festival-A 2023"]
[Site "Krakow"]
[Date "2023.12.31"]
[Round "5.18"]
[White "Kucza, Karol"]
[Black "Balint, Peter"]
[Result "0-1"]
[ECO "C89"]
[WhiteElo "2343"]
[BlackElo "2187"]
[Annotator "RC"]
[PlyCount "70"]
[EventDate "2023.12.24"]
[EventType "swiss"]
[EventCountry "POL"]
[SourceTitle "playchess.com"]
[Source "ChessBase"]
[SourceQuality "1"]
[TimeControl "40/5400+30:1800+30"]

1. e4 {[%emt 0:04:34]} e5 {[%emt 0:00:04]} 2. Nf3 {[%emt 0:00:26]} Nc6 {[%emt 0:00:04]} 3. Bb5 {[%emt 0:00:19]} a6 {[%emt 0:00:11]} 4. Ba4 {[%emt 0:00:11]} Nf6 {[%emt 0:00:06]} 5. O-O {[%emt 0:00:07]} Be7 {[%emt 0:00:34]} 6. Re1 {[%emt 0:00:36]} b5 {[%emt 0:00:06]} 7. Bb3 {[%emt 0:00:06]} O-O {[%emt 0:00:26]} 8. c3 {[%emt 0:00:39]} d5 {[%emt 0:01:41]} 9. exd5 {[%emt 0:00:14]} Nxd5 {[%emt 0:00:45]} 10. Nxe5 {[%emt 0:00:08]} Nxe5 {[%emt 0:00:07]} 11. Rxe5 {[%emt 0:00:06]} Bb7 {[%emt 0:00:54]} 12. Qf3 {[%emt 0:10:42]} Bd6 {[%emt 0:04:50]} 13. Bxd5 {[%emt 0:13:41]} c6 {[%emt 0:00:45]} 14. Re1 {[%emt 0:12:42]} cxd5 {[%emt 0:00:05]} 15. d4 {[%emt 0:00:05]} Qc7 {[%emt 0:00:06]} 16. g3 {[%emt 0:01:40]} Rae8 {[%emt 0:09:29]} 17. Rxe8 {[%emt 0:00:46]} Rxe8 {[%emt 0:00:37]} 18. Be3 {[%emt 0:00:02]} b4 {[%emt 0:00:57]} 19. a3 {[%emt 0:13:03]} a5 {[%emt 0:01:50]} 20. axb4 {[%emt 0:00:06]} axb4 {[%emt 0:00:03]} 21. Kg2 {[%emt 0:02:41]} Bc8 {[%emt 0:13:47]} 22. cxb4 {[%emt 0:17:55]} Bxb4 {[%emt 0:05:53]} 23. Bd2 {[%emt 0:01:26]} Bf8 {[%emt 0:10:53]} 24. Bc3 {[%emt 0:01:18]} Be6 {[%emt 0:02:06]} 25. Nd2 {[%emt 0:00:30]} Qd7 {[%emt 0:00:16]} 26. Nf1 {[%emt 0:01:40]} Bg4 {[%emt 0:08:51]} 27. Qd3 {[%emt 0:01:36]} Be2 {[%emt 0:00:54]} 28. Qd2 {[%emt 0:00:33]} Qg4 {[%emt 0:01:28]} 29. Qf4 {[%emt 0:01:26]} Qh5 {[%emt 0:00:40]} 30. Ne3 {[%emt 0:01:38]} Bd3 {[%emt 0:03:23]} 31. Re1 {[%emt 0:04:59]} f5 {[%emt 0:04:39]} 32. f3 {[%emt 0:02:37]} g5 {[%emt 0:02:21]} 33. Qc7 {[%emt 0:00:06]} g4 {[%emt 0:00:16]} 34. fxg4 {[%emt 0:00:40]} fxg4 {[%emt 0:01:31]} 35. Qd7 {[%emt 0:00:49]} Rxe3 {[%emt 0:00:16]} 0-1

[Event "Cracovia Festival-A 2023"]
[Site "Krakow"]
[Date "2023.12.31"]
[Round "5.19"]
[White "Vasynda, Oleksandr"]
[Black "Dubnevych, Maksym"]
[Result "1/2-1/2"]
[ECO "E16"]
[WhiteElo "2153"]
[BlackElo "2340"]
[Annotator "RC"]
[PlyCount "57"]
[EventDate "2023.12.24"]
[EventType "swiss"]
[EventCountry "POL"]
[SourceTitle "playchess.com"]
[Source "ChessBase"]
[SourceQuality "1"]
[TimeControl "40/5400+30:1800+30"]

1. d4 {[%emt 0:00:05]} Nf6 {[%emt 0:00:07]} 2. Nf3 {[%emt 0:00:05]} e6 {[%emt 0:00:03]} 3. c4 {[%emt 0:00:39]} Bb4+ {[%emt 0:00:05]} 4. Bd2 {[%emt 0:00:28]} Qe7 {[%emt 0:00:11]} 5. a3 {[%emt 0:00:30]} Bxd2+ {[%emt 0:00:10]} 6. Nbxd2 {[%emt 0:00:34]} d6 {[%emt 0:01:44]} 7. g3 {[%emt 0:08:20]} e5 {[%emt 0:01:42]} 8. dxe5 {[%emt 0:02:46]} dxe5 {[%emt 0:00:02]} 9. e4 {[%emt 0:00:08]} a5 {[%emt 0:04:46]} 10. Bg2 {[%emt 0:04:47]} O-O {[%emt 0:03:27]} 11. O-O {[%emt 0:01:05]} Rd8 {[%emt 0:05:11]} 12. Qc2 {[%emt 0:01:11]} Nbd7 {[%emt 0:02:36]} 13. Rfd1 {[%emt 0:03:50]} Nc5 {[%emt 0:03:39]} 14. Nf1 {[%emt 0:04:25]} Bg4 {[%emt 0:11:04]} 15. Ne3 {[%emt 0:00:30]} Bxf3 {[%emt 0:00:01]} 16. Bxf3 {[%emt 0:00:01]} c6 {[%emt 0:00:02]} 17. Nf5 {[%emt 0:14:42]} Qc7 {[%emt 0:03:14]} 18. Kg2 {[%emt 0:03:09]} a4 {[%emt 0:01:44]} 19. Rxd8+ {[%emt 0:02:29]} Rxd8 {[%emt 0:00:02]} 20. Rd1 {[%emt 0:00:48]} Rxd1 {[%emt 0:01:33]} 21. Qxd1 {[%emt 0:00:08]} g6 {[%emt 0:00:10]} 22. Nh6+ {[%emt 0:01:34]} Kg7 {[%emt 0:01:03]} 23. Ng4 {[%emt 0:00:08]} Ng8 {[%emt 0:13:34]} 24. Qd2 {[%emt 0:06:14]} h5 {[%emt 0:00:14]} 25. Ne3 {[%emt 0:00:04]} Qd7 {[%emt 0:20:14]} 26. Qxd7 {[%emt 0:00:33]} Nxd7 {[%emt 0:00:01]} 27. Bd1 {[%emt 0:00:11]} Nc5 {[%emt 0:00:09]} 28. Bc2 {[%emt 0:00:27]} Nf6 {[%emt 0:00:20]} 29. f3 {[%emt 0:00:56]} 1/2-1/2

[Event "Cracovia Festival-A 2023"]
[Site "Krakow"]
[Date "2023.12.31"]
[Round "5.20"]
[White "Janzelj, Tim"]
[Black "Fodor, Balazs"]
[Result "1/2-1/2"]
[ECO "A05"]
[WhiteElo "2441"]
[BlackElo "2225"]
[Annotator "RC"]
[PlyCount "143"]
[EventDate "2023.12.24"]
[EventType "swiss"]
[EventCountry "POL"]
[SourceTitle "playchess.com"]
[Source "ChessBase"]
[SourceQuality "1"]
[TimeControl "40/5400+30:1800+30"]

1. Nf3 {[%emt 0:05:11]} Nf6 {[%emt 0:02:22]} 2. g3 {[%emt 0:00:06]} g6 {[%emt 0:00:30]} 3. b3 {[%emt 0:00:16]} Bg7 {[%emt 0:00:09]} 4. Bb2 {[%emt 0:00:11]} O-O {[%emt 0:00:12]} 5. Bg2 {[%emt 0:00:14]} c5 {[%emt 0:00:10]} 6. c4 {[%emt 0:00:48]} d6 {[%emt 0:00:08]} 7. d4 {[%emt 0:02:40]} d5 {[%emt 0:00:08]} 8. Nbd2 {[%emt 0:00:48]} dxc4 {[%emt 0:04:50]} 9. Nxc4 {[%emt 0:02:13]} Nc6 {[%emt 0:09:21]} 10. dxc5 {[%emt 0:05:51]} Be6 {[%emt 0:03:42]} 11. O-O {[%emt 0:02:10]} Bxc4 {[%emt 0:01:01]} 12. bxc4 {[%emt 0:00:12]} Qa5 {[%emt 0:01:20]} 13. Nd4 {[%emt 0:18:45]} Nxd4 {[%emt 0:07:28]} 14. Bxd4 {[%emt 0:00:21]} Rad8 {[%emt 0:03:59]} 15. Qd3 {[%emt 0:01:35]} Ne8 {[%emt 0:13:46]} 16. e3 {[%emt 0:03:45]} b6 {[%emt 0:06:43]} 17. cxb6 {[%emt 0:03:31]} axb6 {[%emt 0:00:30]} 18. Qe4 {[%emt 0:09:17]} Nd6 {[%emt 0:10:10]} 19. Qxe7 {[%emt 0:00:34]} Nf5 {[%emt 0:00:59]} 20. Qb7 {[%emt 0:01:18]} Nxd4 {[%emt 0:01:56]} 21. exd4 {[%emt 0:00:05]} Bxd4 {[%emt 0:00:11]} 22. Bd5 {[%emt 0:11:50]} Bxa1 {[%emt 0:04:38]} 23. Rxa1 {[%emt 0:02:00]} Rb8 {[%emt 0:03:53]} 24. Qe7 {[%emt 0:08:45]} Qc5 {[%emt 0:01:42]} 25. Qxc5 {[%emt 0:00:55]} bxc5 {[%emt 0:00:02]} 26. a4 {[%emt 0:00:12]} Rfe8 {[%emt 0:00:05]} 27. a5 {[%emt 0:00:20]} Re7 {[%emt 0:00:21]} 28. a6 {[%emt 0:00:21]} Ra7 {[%emt 0:00:13]} 29. Ra5 {[%emt 0:08:36]} Rb4 {[%emt 0:00:22]} 30. Kg2 {[%emt 0:01:17]} Kg7 {[%emt 0:03:49]} 31. Kf3 {[%emt 0:00:21]} f5 {[%emt 0:03:07]} 32. h4 {[%emt 0:04:59]} h6 {[%emt 0:00:33]} 33. Ke3 {[%emt 0:00:15]} Kf6 {[%emt 0:02:05]} 34. Kd3 {[%emt 0:00:15]} Ke5 {[%emt 0:00:43]} 35. Rxc5 {[%emt 0:00:45]} Rb3+ {[%emt 0:02:25]} 36. Kc2 {[%emt 0:02:36]} Rb6 {[%emt 0:00:20]} 37. Bb7+ {[%emt 0:00:51]} Kd4 {[%emt 0:00:04]} 38. Rb5 {[%emt 0:02:21]} Rbxa6 {[%emt 0:01:01]} 39. Bxa6 {[%emt 0:00:02]} Rxa6 {[%emt 0:00:04]} 40. Kb3 {[%emt 0:00:00]} Ra1 {[%emt 0:00:00]} 41. Rd5+ {[%emt 0:02:03]} Ke4 {[%emt 0:07:03]} 42. Rd2 {[%emt 0:01:04]} g5 {[%emt 0:01:38]} 43. hxg5 {[%emt 0:00:55]} hxg5 {[%emt 0:00:07]} 44. c5 {[%emt 0:03:33]} Rc1 {[%emt 0:02:54]} 45. Kb4 {[%emt 0:00:03]} f4 {[%emt 0:01:09]} 46. gxf4 {[%emt 0:00:02]} gxf4 {[%emt 0:00:43]} 47. Kb5 {[%emt 0:00:09]} Rb1+ {[%emt 0:02:14]} 48. Ka6 {[%emt 0:00:02]} Ra1+ {[%emt 0:00:09]} 49. Kb6 {[%emt 0:00:03]} Rb1+ {[%emt 0:00:05]} 50. Kc7 {[%emt 0:00:03]} f3 {[%emt 0:00:18]} 51. c6 {[%emt 0:08:53]} Re1 {[%emt 0:00:17]} 52. Kb6 {[%emt 0:00:38]} Re2 {[%emt 0:02:30]} 53. c7 {[%emt 0:00:36]} Rxd2 {[%emt 0:00:06]} 54. c8=Q {[%emt 0:00:04]} Rxf2 {[%emt 0:00:11]} 55. Qc4+ {[%emt 0:00:30]} Ke3 {[%emt 0:00:37]} 56. Qc5+ {[%emt 0:04:56]} Ke2 {[%emt 0:00:32]} 57. Kc6 {[%emt 0:00:04]} Kf1 {[%emt 0:02:19]} 58. Qf5 {[%emt 0:02:05]} Rc2+ {[%emt 0:02:53]} 59. Kd5 {[%emt 0:10:14]} Rc5+ {[%emt 0:03:43]} 60. Kxc5 {[%emt 0:00:42]} f2 {[%emt 0:00:05]} 61. Qg4 {[%emt 0:02:16]} Ke1 {[%emt 0:00:07]} 62. Qg3 {[%emt 0:00:04]} Ke2 {[%emt 0:00:06]} 63. Qh2 {[%emt 0:00:08]} Kf3 {[%emt 0:01:16]} 64. Qh1+ {[%emt 0:04:03]} Ke2 {[%emt 0:00:06]} 65. Qe4+ {[%emt 0:00:07]} Kf1 {[%emt 0:00:20]} 66. Qg6 {[%emt 0:00:05]} Ke2 {[%emt 0:00:48]} 67. Qc2+ {[%emt 0:02:05]} Kf3 {[%emt 0:00:12]} 68. Qc4 {[%emt 0:00:32]} Kg2 {[%emt 0:00:06]} 69. Qg4+ {[%emt 0:00:03]} Kh1 {[%emt 0:00:05]} 70. Qh3+ {[%emt 0:00:14]} Kg1 {[%emt 0:00:06]} 71. Qg3+ {[%emt 0:00:02]} Kh1 {[%emt 0:00:05]} 72. Qxf2 {[%emt 0:00:03]} 1/2-1/2

[Event "Cracovia Festival-A 2023"]
[Site "Krakow"]
[Date "2023.12.31"]
[Round "5.21"]
[White "Keinanen, Anastasia"]
[Black "Niedbala, Bartlomiej"]
[Result "1-0"]
[ECO "B03"]
[WhiteElo "2227"]
[BlackElo "2393"]
[Annotator "RC"]
[PlyCount "69"]
[EventDate "2023.12.24"]
[EventType "swiss"]
[EventCountry "POL"]
[SourceTitle "playchess.com"]
[Source "ChessBase"]
[SourceQuality "1"]
[TimeControl "40/5400+30:1800+30"]

1. e4 {[%emt 0:00:08]} Nf6 {[%emt 0:00:06]} 2. e5 {[%emt 0:01:20]} Nd5 3. d4 {[%emt 0:00:19]} d6 {[%emt 0:00:04]} 4. c4 {[%emt 0:00:05]} Nb6 {[%emt 0:00:04]} 5. f4 {[%emt 0:00:24]} g6 {[%emt 0:00:11]} 6. Be3 {[%emt 0:01:06]} Bg7 {[%emt 0:01:34]} 7. Nc3 {[%emt 0:05:13]} Be6 {[%emt 0:00:12]} 8. Nf3 {[%emt 0:05:37]} O-O {[%emt 0:01:00]} 9. b3 {[%emt 0:05:13]} dxe5 {[%emt 0:03:10]} 10. fxe5 {[%emt 0:04:14]} c5 {[%emt 0:00:46]} 11. d5 {[%emt 0:21:41]} Bg4 {[%emt 0:06:51]} 12. Bxc5 {[%emt 0:04:07]} N8d7 {[%emt 0:02:34]} 13. Bd4 {[%emt 0:01:43]} Bxf3 {[%emt 0:11:02]} 14. gxf3 {[%emt 0:07:42]} Nxe5 {[%emt 0:01:51]} 15. Bg2 {[%emt 0:00:08]} e6 {[%emt 0:06:32]} 16. O-O {[%emt 0:02:24]} Qh4 {[%emt 0:01:47]} 17. f4 {[%emt 0:06:28]} Ned7 {[%emt 0:12:41]} 18. Bxg7 {[%emt 0:05:44]} Kxg7 {[%emt 0:02:26]} 19. d6 {[%emt 0:01:43]} Rab8 {[%emt 0:00:33]} 20. Ne4 {[%emt 0:00:47]} Kg8 {[%emt 0:04:14]} 21. Qd2 {[%emt 0:03:28]} Rfe8 {[%emt 0:01:30]} 22. Rae1 {[%emt 0:04:39]} Qh6 {[%emt 0:06:40]} 23. a4 {[%emt 0:04:15]} Qg7 {[%emt 0:00:59]} 24. a5 {[%emt 0:00:05]} Nc8 {[%emt 0:00:02]} 25. b4 a6 {[%emt 0:01:03]} 26. Nc5 {[%emt 0:04:12]} Nxc5 {[%emt 0:00:48]} 27. bxc5 {[%emt 0:00:06]} Na7 {[%emt 0:00:06]} 28. Rb1 {[%emt 0:00:45]} f5 {[%emt 0:00:50]} 29. d7 {[%emt 0:01:01]} Red8 {[%emt 0:00:22]} 30. c6 {[%emt 0:00:07]} Qe7 {[%emt 0:01:50]} 31. c7 {[%emt 0:03:37]} Qc5+ {[%emt 0:00:14]} 32. Qf2 {[%emt 0:00:06]} Qxc7 {[%emt 0:00:04]} 33. Qxa7 {[%emt 0:00:03]} Rxd7 {[%emt 0:00:45]} 34. c5 {[%emt 0:01:45]} Rd2 {[%emt 0:08:05]} 35. c6 {[%emt 0:01:06]} 1-0

[Event "Cracovia Festival-A 2023"]
[Site "Krakow"]
[Date "2023.12.31"]
[Round "5.22"]
[White "Karolczuk, Iwo"]
[Black "Eke, Salih"]
[Result "1/2-1/2"]
[ECO "B31"]
[WhiteElo "2365"]
[BlackElo "2217"]
[Annotator "RC"]
[PlyCount "119"]
[EventDate "2023.12.24"]
[EventType "swiss"]
[EventCountry "POL"]
[SourceTitle "playchess.com"]
[Source "ChessBase"]
[SourceQuality "1"]
[TimeControl "40/5400+30:1800+30"]

1. e4 {[%emt 0:01:37]} c5 {[%emt 0:06:58]} 2. Nf3 {[%emt 0:00:11]} Nc6 {[%emt 0:00:05]} 3. Bb5 {[%emt 0:00:12]} g6 {[%emt 0:00:21]} 4. Bxc6 {[%emt 0:00:06]} bxc6 {[%emt 0:00:05]} 5. O-O {[%emt 0:00:07]} Bg7 {[%emt 0:00:04]} 6. Re1 {[%emt 0:00:04]} Qc7 {[%emt 0:00:20]} 7. h3 {[%emt 0:00:24]} d6 {[%emt 0:00:20]} 8. Na3 {[%emt 0:00:22]} e5 {[%emt 0:09:48]} 9. c3 {[%emt 0:05:36]} Ne7 {[%emt 0:00:10]} 10. d4 {[%emt 0:00:31]} cxd4 {[%emt 0:01:08]} 11. cxd4 {[%emt 0:00:08]} O-O {[%emt 0:00:47]} 12. dxe5 {[%emt 0:01:22]} dxe5 {[%emt 0:00:07]} 13. Be3 {[%emt 0:01:37]} h6 {[%emt 0:03:37]} 14. Bc5 {[%emt 0:02:55]} Rd8 {[%emt 0:01:54]} 15. Qa4 {[%emt 0:01:56]} Be6 {[%emt 0:00:08]} 16. Nc4 {[%emt 0:02:30]} Nc8 {[%emt 0:16:46]} 17. Qa5 {[%emt 0:23:33]} Nb6 {[%emt 0:00:27]} 18. Ncxe5 {[%emt 0:02:44]} Bxe5 {[%emt 0:00:31]} 19. Nxe5 {[%emt 0:01:28]} Qxe5 {[%emt 0:03:03]} 20. Bxb6 {[%emt 0:00:07]} Qxa5 {[%emt 0:00:05]} 21. Bxa5 {[%emt 0:00:04]} Rd4 {[%emt 0:01:33]} 22. a3 {[%emt 0:11:29]} c5 {[%emt 0:02:23]} 23. Bc3 {[%emt 0:12:52]} Rd3 {[%emt 0:00:34]} 24. f4 {[%emt 0:05:44]} Rad8 {[%emt 0:00:25]} 25. Kf2 {[%emt 0:00:15]} Bb3 {[%emt 0:06:54]} 26. Re2 {[%emt 0:05:28]} Bd1 {[%emt 0:02:15]} 27. Re1 {[%emt 0:04:43]} Bb3 {[%emt 0:02:38]} 28. Re3 {[%emt 0:01:48]} c4 {[%emt 0:02:52]} 29. Rae1 {[%emt 0:00:11]} Kf8 {[%emt 0:04:47]} 30. f5 {[%emt 0:01:46]} h5 {[%emt 0:03:31]} 31. Kf3 {[%emt 0:01:00]} Ke7 {[%emt 0:09:08]} 32. g3 {[%emt 0:03:06]} Bc2 {[%emt 0:06:42]} 33. Kf4 {[%emt 0:00:15]} Rxe3 {[%emt 0:03:28]} 34. Rxe3 {[%emt 0:00:07]} Rd3 {[%emt 0:01:18]} 35. Rxd3 {[%emt 0:05:41]} Bxd3 {[%emt 0:00:07]} 36. g4 {[%emt 0:03:03]} hxg4 {[%emt 0:00:26]} 37. hxg4 {[%emt 0:00:13]} gxf5 {[%emt 0:02:34]} 38. gxf5 {[%emt 0:00:34]} f6 {[%emt 0:01:58]} 39. e5 {[%emt 0:03:02]} fxe5+ {[%emt 0:00:10]} 40. Kxe5 {[%emt 0:00:00]} Kf7 {[%emt 0:00:00]} 41. f6 {[%emt 0:00:30]} Bc2 {[%emt 0:02:30]} 42. Ba5 {[%emt 0:04:28]} Bb3 {[%emt 0:00:50]} 43. Bc7 {[%emt 0:08:28]} Bc2 {[%emt 0:01:21]} 44. Bd8 {[%emt 0:00:05]} Bb3 {[%emt 0:00:15]} 45. Ba5 {[%emt 0:00:56]} Bc2 {[%emt 0:00:08]} 46. Bb4 {[%emt 0:00:04]} Bd1 {[%emt 0:00:45]} 47. Be1 {[%emt 0:00:47]} Bc2 {[%emt 0:00:21]} 48. Bc3 {[%emt 0:00:04]} Bb3 {[%emt 0:00:38]} 49. Ba5 {[%emt 0:01:03]} Bc2 {[%emt 0:01:53]} 50. Bc7 {[%emt 0:00:03]} Bd1 {[%emt 0:00:16]} 51. Bd8 {[%emt 0:00:03]} Bb3 {[%emt 0:00:06]} 52. Kd4 {[%emt 0:01:20]} a5 {[%emt 0:00:34]} 53. Bxa5 {[%emt 0:00:27]} Kxf6 {[%emt 0:00:06]} 54. Kc5 {[%emt 0:00:04]} Ke6 {[%emt 0:00:12]} 55. Kb5 {[%emt 0:00:03]} Kd7 {[%emt 0:00:13]} 56. Bb6 {[%emt 0:00:26]} Kc8 {[%emt 0:00:14]} 57. a4 {[%emt 0:00:03]} Kb7 {[%emt 0:00:58]} 58. a5 {[%emt 0:00:05]} Ka8 {[%emt 0:00:00]} 59. a6 {[%emt 0:00:07]} Ba2 {[%emt 0:00:55]} 60. Kb4 {[%emt 0:00:25]} 1/2-1/2

[Event "Cracovia Festival-A 2023"]
[Site "Krakow"]
[Date "2023.12.31"]
[Round "5.23"]
[White "Skytte, Rasmus"]
[Black "Valiyev, Shahin"]
[Result "1-0"]
[ECO "B23"]
[WhiteElo "2337"]
[BlackElo "2158"]
[Annotator "RC"]
[PlyCount "71"]
[EventDate "2023.12.24"]
[EventType "swiss"]
[EventCountry "POL"]
[SourceTitle "playchess.com"]
[Source "ChessBase"]
[SourceQuality "1"]
[TimeControl "40/5400+30:1800+30"]

1. e4 {[%emt 0:01:56]} c5 {[%emt 0:00:08]} 2. Nc3 {[%emt 0:00:25]} d6 {[%emt 0:00:15]} 3. f4 {[%emt 0:00:14]} g6 {[%emt 0:02:11]} 4. Nf3 {[%emt 0:00:12]} Bg7 {[%emt 0:00:05]} 5. Bb5+ {[%emt 0:00:13]} Bd7 {[%emt 0:00:25]} 6. Bc4 {[%emt 0:00:27]} Nc6 {[%emt 0:07:46]} 7. d3 {[%emt 0:00:10]} e6 {[%emt 0:04:04]} 8. f5 {[%emt 0:00:13]} exf5 {[%emt 0:02:22]} 9. Nb5 {[%emt 0:11:36]} Qb8 {[%emt 0:28:38]} 10. Bf4 {[%emt 0:06:32]} Ne5 {[%emt 0:00:30]} 11. exf5 {[%emt 0:03:18]} Bxf5 {[%emt 0:00:20]} 12. Qe2 {[%emt 0:01:49]} Ne7 {[%emt 0:02:00]} 13. Nxd6+ {[%emt 0:08:33]} Qxd6 {[%emt 0:00:24]} 14. Bxe5 {[%emt 0:09:39]} Bxe5 {[%emt 0:01:10]} 15. Qxe5 {[%emt 0:01:11]} Qxe5+ {[%emt 0:01:09]} 16. Nxe5 {[%emt 0:00:06]} Rf8 {[%emt 0:08:22]} 17. O-O {[%emt 0:05:08]} f6 {[%emt 0:00:52]} 18. Bb5+ {[%emt 0:01:39]} Kd8 {[%emt 0:00:08]} 19. Nf3 {[%emt 0:01:50]} a6 {[%emt 0:01:16]} 20. Ba4 {[%emt 0:01:07]} Bd7 {[%emt 0:02:01]} 21. Bb3 {[%emt 0:01:10]} Nc6 {[%emt 0:00:14]} 22. Ng5 {[%emt 0:02:24]} h5 {[%emt 0:01:47]} 23. Nh7 {[%emt 0:02:04]} Rh8 {[%emt 0:00:01]} 24. Nxf6 {[%emt 0:00:23]} Bf5 {[%emt 0:00:31]} 25. Rae1 {[%emt 0:01:37]} Nd4 {[%emt 0:01:47]} 26. Ne4 {[%emt 0:03:47]} Rc8 {[%emt 0:05:28]} 27. Nd6 {[%emt 0:00:46]} Rc7 {[%emt 0:00:15]} 28. Nf7+ {[%emt 0:02:21]} Rxf7 {[%emt 0:00:01]} 29. Bxf7 {[%emt 0:00:10]} Nxc2 {[%emt 0:00:02]} 30. Rc1 {[%emt 0:01:19]} Nb4 {[%emt 0:00:05]} 31. Rxc5 {[%emt 0:01:04]} Nxd3 {[%emt 0:00:05]} 32. Rd1 {[%emt 0:01:31]} Ke7 {[%emt 0:00:04]} 33. Rc7+ {[%emt 0:01:09]} Kf6 {[%emt 0:00:01]} 34. Rxb7 {[%emt 0:02:02]} Rc8 {[%emt 0:00:32]} 35. Bd5 {[%emt 0:01:17]} Rc2 {[%emt 0:00:37]} 36. Rf7+ {[%emt 0:00:39]} 1-0